Reference,Expense_Type,Payment_Date,Payment_Amount,Supplier,MCC_Code,Department
053020101418,ICT CONTRACTS,29/06/2020,882,FLOWBIRD SMART CITY UK LTD PARKEON LTD,4789,PARKING SERVICES
053369100941,AGENCY STAFF,01/06/2020,7329.8,DRIVER HIRE GATWICK LTD,7361,WASTE & RECYLING
054385103621,PROFESSIONAL FEES,15/06/2020,6000,Gatherwell Ltd,7392,HOUSING
054432102769,LANDSCAPE WORKS (INC FENCING & GARDENING,01/06/2020,895,Derek Collis t/a DelWood,780,LEISURE & CULTURE
054545100210,PROFESSIONAL FEES,15/06/2020,825.6,NATIONAL ASSOC OF COUNCILLORS,9405,LEGAL & DEMOCRATIC
054576100278,GRANTS PAID,01/06/2020,4600,RELATE- NORTH & S.W SUSSEX,7277,HOUSING
054600100156,SEARCH FEES,01/06/2020,1656,WEST SUSSEX COUNTY COUNCIL,9405,DEVELOPMENT
054620102598,AGENCY STAFF,01/06/2020,652.68,THE BEST CONNECTION GROUP LTD,7361,WASTE & RECYLING
054643102429,DISPOSAL COSTS,01/06/2020,1873.97,BRITANIACREST RECYCLING LTD,7392,WASTE & RECYLING
054644102429,DISPOSAL COSTS,01/06/2020,4130.88,BRITANIACREST RECYCLING LTD,7392,WASTE & RECYLING
054645102429,DISPOSAL COSTS,01/06/2020,3310.32,BRITANIACREST RECYCLING LTD,7392,WASTE & RECYLING
054757102725,ELECTRICITY,01/06/2020,580.6,HORSHAM DISTRICT INDOOR BOWLS CLUB LTD,7997,LEISURE & CULTURE
054774102053,GRANTS PAID,22/06/2020,15000,4 THE YOUTH,8398,HOUSING
054786103602,VOID REPAIRS,01/06/2020,3865.12,MountJoy Limited,1771,HOUSING
054787103602,PLANNED PREVENTATIVE MAINTENANCE,01/06/2020,492.85,MountJoy Limited,1771,LEISURE & CULTURE
054787103602,PLANNED PREVENTATIVE MAINTENANCE,01/06/2020,492.85,MountJoy Limited,1771,LEISURE & CULTURE
054787103602,PLANNED PREVENTATIVE MAINTENANCE,01/06/2020,99.53,MountJoy Limited,1771,PARKING SERVICES
054787103602,PLANNED PREVENTATIVE MAINTENANCE,01/06/2020,985.7,MountJoy Limited,1771,PROPERTY & FACILITIES
054787103602,PLANNED PREVENTATIVE MAINTENANCE,01/06/2020,518.2,MountJoy Limited,1771,PROPERTY & FACILITIES
054787103602,PLANNED PREVENTATIVE MAINTENANCE,01/06/2020,4614.68,MountJoy Limited,1771,STREET SCENE & FLEET
054787103602,PLANNED PREVENTATIVE MAINTENANCE,01/06/2020,19.39,MountJoy Limited,1771,PROPERTY & FACILITIES
054787103602,PLANNED PREVENTATIVE MAINTENANCE,01/06/2020,724.5,MountJoy Limited,1771,LEISURE & CULTURE
054787103602,PLANNED PREVENTATIVE MAINTENANCE,01/06/2020,85.72,MountJoy Limited,1771,HOUSING
054787103602,PLANNED PREVENTATIVE MAINTENANCE,01/06/2020,58.18,MountJoy Limited,1771,HOUSING
054787103602,PLANNED PREVENTATIVE MAINTENANCE,01/06/2020,58.75,MountJoy Limited,1771,PROPERTY & FACILITIES
054821101307,MATERIALS - DIRECT PURCHASE,08/06/2020,576,CRAEMER UK LIMITED,1799,WASTE & RECYLING
054821101307,MATERIALS - DIRECT PURCHASE,08/06/2020,48,CRAEMER UK LIMITED,1799,WASTE & RECYLING
054844100094,POSTAGE PACKAGING DISTRIBUTION,29/06/2020,1.31,ROYAL MAIL,7399,CUSTOMER SERVICES
054844100094,POSTAGE PACKAGING DISTRIBUTION,29/06/2020,1.52,ROYAL MAIL,7399,CUSTOMER SERVICES
054844100094,POSTAGE PACKAGING DISTRIBUTION,29/06/2020,1566.74,ROYAL MAIL,7399,CUSTOMER SERVICES
054844100094,POSTAGE PACKAGING DISTRIBUTION,29/06/2020,158.34,ROYAL MAIL,7399,PARKING SERVICES
054845103784,PROJECT SUPPORT,22/06/2020,1920,Pipe Media Design Ltd,5734,HOUSING
054885100941,AGENCY STAFF,01/06/2020,621.24,DRIVER HIRE GATWICK LTD,7361,STREET SCENE & FLEET
054886100941,AGENCY STAFF,01/06/2020,1370.08,DRIVER HIRE GATWICK LTD,7361,WASTE & RECYLING
054933102429,DISPOSAL COSTS,08/06/2020,1721.71,BRITANIACREST RECYCLING LTD,7392,WASTE & RECYLING
054934102429,DISPOSAL COSTS,08/06/2020,5101.2,BRITANIACREST RECYCLING LTD,7392,WASTE & RECYLING
054935102429,DISPOSAL COSTS,08/06/2020,5106.72,BRITANIACREST RECYCLING LTD,7392,WASTE & RECYLING
054941101519,COUNSEL FEES,01/06/2020,1800,CHRISTOPHER KATKOWSKI QC,8111,SPATIAL PLANNING
054943100094,POSTAGE PACKAGING DISTRIBUTION,29/06/2020,1338.6,ROYAL MAIL,7399,CUSTOMER SERVICES
054943100094,POSTAGE PACKAGING DISTRIBUTION,29/06/2020,20.36,ROYAL MAIL,7399,PARKING SERVICES
054950102395,ICT CONTRACTS,08/06/2020,5265.19,PHOENIX SOFTWARE,5045,TECHNOLOGY
054966102598,AGENCY STAFF,08/06/2020,837.94,THE BEST CONNECTION GROUP LTD,7361,WASTE & RECYLING
055003102326,BOARD & LODGING CHARGES,01/06/2020,288,CRAWLEY HOTEL LTD,7011,HOUSING
055003102326,BOARD & LODGING CHARGES,01/06/2020,960,CRAWLEY HOTEL LTD,7011,HOUSING
055004102326,BOARD & LODGING CHARGES,01/06/2020,1056,CRAWLEY HOTEL LTD,7011,HOUSING
055004102326,BOARD & LODGING CHARGES,01/06/2020,320,CRAWLEY HOTEL LTD,7011,HOUSING
055005102326,BOARD & LODGING CHARGES,01/06/2020,1056,CRAWLEY HOTEL LTD,7011,HOUSING
055005102326,BOARD & LODGING CHARGES,01/06/2020,320,CRAWLEY HOTEL LTD,7011,HOUSING
055007102326,BOARD & LODGING CHARGES,01/06/2020,1780.8,CRAWLEY HOTEL LTD,7011,HOUSING
055007102326,BOARD & LODGING CHARGES,01/06/2020,336,CRAWLEY HOTEL LTD,7011,HOUSING
055010103602,PLANNED PREVENTATIVE MAINTENANCE,08/06/2020,16164,MountJoy Limited,1771,PROPERTY & FACILITIES
055028103037,PERFORMING RIGHTS LICENSES,08/06/2020,3385.66,PPL PRS Ltd,8641,LEISURE & CULTURE
055032103924,GENERAL MATERIALS,01/06/2020,720,Tennants Distribution Limited,5013,STREET SCENE & FLEET
055036102450,USE OF CONSULTANTS,08/06/2020,11969.87,INTELLIGENT PLANS AND EXAMINATIONS (IPE),7392,SPATIAL PLANNING
055041102888,AGENCY STAFF,01/06/2020,902.52,SERVICE CARE SOLUTIONS LTD,5511,WASTE & RECYLING
055041102888,AGENCY STAFF,01/06/2020,245.09,SERVICE CARE SOLUTIONS LTD,5511,STREET SCENE & FLEET
055041102888,AGENCY STAFF,01/06/2020,278.21,SERVICE CARE SOLUTIONS LTD,5511,WASTE & RECYLING
055048103602,REACTIVE MAINTENANCE,15/06/2020,558.7,MountJoy Limited,1771,LEISURE & CULTURE
055048103602,REACTIVE MAINTENANCE,15/06/2020,0,MountJoy Limited,1771,LEISURE & CULTURE
055048103602,REACTIVE MAINTENANCE,15/06/2020,1660.87,MountJoy Limited,1771,LEISURE & CULTURE
055048103602,REACTIVE MAINTENANCE,15/06/2020,85.8,MountJoy Limited,1771,LEISURE & CULTURE
055048103602,PLANNED PREVENTATIVE MAINTENANCE,15/06/2020,39.6,MountJoy Limited,1771,LEISURE & CULTURE
055048103602,REACTIVE MAINTENANCE,15/06/2020,515.68,MountJoy Limited,1771,PROPERTY & FACILITIES
055048103602,REACTIVE MAINTENANCE,15/06/2020,653.36,MountJoy Limited,1771,PROPERTY & FACILITIES
055048103602,REACTIVE MAINTENANCE,15/06/2020,1271.69,MountJoy Limited,1771,PARKING SERVICES
055048103602,PLANNED PREVENTATIVE MAINTENANCE,15/06/2020,699.6,MountJoy Limited,1771,PARKING SERVICES
055048103602,PLANNED PREVENTATIVE MAINTENANCE,15/06/2020,1550.75,MountJoy Limited,1771,PARKING SERVICES
055048103602,REACTIVE MAINTENANCE,15/06/2020,128.16,MountJoy Limited,1771,PARKING SERVICES
055048103602,REACTIVE MAINTENANCE,15/06/2020,369.02,MountJoy Limited,1771,ECONOMIC DEVELOPMENT
055048103602,REACTIVE MAINTENANCE,15/06/2020,2175.36,MountJoy Limited,1771,PROPERTY & FACILITIES
055048103602,REACTIVE MAINTENANCE,15/06/2020,1028.41,MountJoy Limited,1771,PROPERTY & FACILITIES
055048103602,REACTIVE MAINTENANCE,15/06/2020,1186.22,MountJoy Limited,1771,PROPERTY & FACILITIES
055048103602,REACTIVE MAINTENANCE,15/06/2020,0,MountJoy Limited,1771,STREET SCENE & FLEET
055048103602,REACTIVE MAINTENANCE,15/06/2020,105.6,MountJoy Limited,1771,LEISURE & CULTURE
055048103602,REACTIVE MAINTENANCE,15/06/2020,841.1,MountJoy Limited,1771,HOUSING
055048103602,REACTIVE MAINTENANCE,15/06/2020,100.32,MountJoy Limited,1771,PROPERTY & FACILITIES
055048103602,REACTIVE MAINTENANCE,15/06/2020,2406.83,MountJoy Limited,1771,HOUSING
055048103602,REACTIVE MAINTENANCE,15/06/2020,580.43,MountJoy Limited,1771,PROPERTY & FACILITIES
055050102341,IT PROJECTS,01/06/2020,7200,SOCIALSIGNIN,8699,COMMUNICATIONS
055053102565,WATER,01/06/2020,64.74,SCOTTISH WATER BUSINESS STREAM LTD,4900,LEISURE & CULTURE
055053102565,WATER,08/06/2020,529.97,SCOTTISH WATER BUSINESS STREAM LTD,4900,PROPERTY & FACILITIES
055053102565,WATER,08/06/2020,55.06,SCOTTISH WATER BUSINESS STREAM LTD,4900,ECONOMIC DEVELOPMENT
055053102565,WATER,08/06/2020,549.08,SCOTTISH WATER BUSINESS STREAM LTD,4900,PROPERTY & FACILITIES
055054100536,EQUIPMENT & TOOLS-HIRE,08/06/2020,483.6,SIEMENS FINANCIAL SERVICES LTD,8999,STREET SCENE & FLEET
055054100536,EQUIPMENT & TOOLS-REPAIR & MNT,08/06/2020,60,SIEMENS FINANCIAL SERVICES LTD,8999,STREET SCENE & FLEET
055055103227,EQUIPMENT & TOOLS-REPAIR & MNT,15/06/2020,882,Easy-Gate Ltd,NA,LEISURE & CULTURE
055058102242,VEHICLE HIRE CHARGES,01/06/2020,1296,C P DAVIDSON & SONS LTD,5013,STREET SCENE & FLEET
055062103563,EQUIPMENT & TOOLS-PURCHASE,15/06/2020,3720,UDMS LTD (ULYSSES),1520,ENVIRONMENTAL SERVICES/LICENSING
055069100710,RECRUITMENT - ADVERTISING,01/06/2020,1404.3,THE OYSTER PARTNERSHIP,7361,HUMAN RESOURCES & ORG DEVELOPMENT
055085100152,EQUIPMENT & TOOLS-PURCHASE,15/06/2020,1194,TUNSTALL HEALTHCARE (UK) LTD,7399,ENVIRONMENTAL SERVICES/LICENSING
055092100317,TREE MAINTENANCE,01/06/2020,4370.53,CLASSIC SERVICES GROUP LTD,7393,LEISURE & CULTURE
055092100317,LANDSCAPE WORKS (INC FENCING & GARDENING,01/06/2020,265.99,CLASSIC SERVICES GROUP LTD,7393,LEISURE & CULTURE
055115100117,MATERIALS - DIRECT PURCHASE,15/06/2020,6384,EGBERT H.TAYLOR & CO. LTD.,5561,WASTE & RECYLING
055121103288,USE OF CONSULTANTS,08/06/2020,3124.8,Essex County Council,9405,DEVELOPMENT
055142101725,AGENCY STAFF,01/06/2020,2442,SELLICK PARTNERSHIP LTD,7361,LEGAL & DEMOCRATIC
055144100421,ICT CONTRACTS,22/06/2020,21094.5,CIVICA  UK LIMITED,7372,LEGAL & DEMOCRATIC
055152101230,AGENCY STAFF,01/06/2020,1200,M W VEHICLE ENGINEERS LTD,5013,STREET SCENE & FLEET
055153100063,EQUIPMENT & TOOLS-HIRE,22/06/2020,665.74,CANON UK LTD,5044,TECHNOLOGY
055158100063,EQUIPMENT & TOOLS-HIRE,22/06/2020,665.74,CANON UK LTD,5044,TECHNOLOGY
055159100094,PROJECT SUPPORT,29/06/2020,8073.5,ROYAL MAIL,7399,WASTE & RECYLING
055161102088,PROFESSIONAL FEES,01/06/2020,792,GRAVES JENKINS (CRAWLEY) LTD,6513,PROPERTY & FACILITIES
055183102914,PROJECT SUPPORT,15/06/2020,2840.4,NEWMAN THOMSON LTD,2741,WASTE & RECYLING
055184102598,AGENCY STAFF,15/06/2020,652.68,THE BEST CONNECTION GROUP LTD,7361,WASTE & RECYLING
055185100156,DISPOSAL COSTS,15/06/2020,716.85,WEST SUSSEX COUNTY COUNCIL,9405,WASTE & RECYLING
055189102888,AGENCY STAFF,15/06/2020,556.42,SERVICE CARE SOLUTIONS LTD,5511,WASTE & RECYLING
055189102888,AGENCY STAFF,15/06/2020,612.72,SERVICE CARE SOLUTIONS LTD,5511,STREET SCENE & FLEET
055190100941,AGENCY STAFF,29/06/2020,1883.84,DRIVER HIRE GATWICK LTD,7361,WASTE & RECYLING
055192100941,AGENCY STAFF,15/06/2020,523.86,DRIVER HIRE GATWICK LTD,7361,WASTE & RECYLING
055192100941,AGENCY STAFF,15/06/2020,465.94,DRIVER HIRE GATWICK LTD,7361,STREET SCENE & FLEET
055210101118,PROFESSIONAL SUBSCRIPTIONS,01/06/2020,816,GATWICK DIAMOND BUSINESS,7392,CHIEF EXECUTIVE OFFICE
055214100651,AUDIT FEES,29/06/2020,3465.6,ERNST & YOUNG LLP,8931,CHIEF EXECUTIVE OFFICE
055215101418,PAYMENT FACILITIES,15/06/2020,2461.2,FLOWBIRD SMART CITY UK LTD PARKEON LTD,4789,PARKING SERVICES
055216100477,BOARD & LODGING CHARGES,01/06/2020,1620,FURZEDOWN GUEST HOUSE,7011,HOUSING
055220101583,PROFESSIONAL FEES,15/06/2020,1320,JULIAN CHURCH CONSTRUCTION CONSULTANT,NA,PROPERTY & FACILITIES
055235100041,ELECTRICITY,01/06/2020,77.1,KENT COUNTY COUNCIL (KCS),4900,PROPERTY & FACILITIES
055235100041,ELECTRICITY,01/06/2020,8.42,KENT COUNTY COUNCIL (KCS),4900,ECONOMIC DEVELOPMENT
055235100041,ELECTRICITY,01/06/2020,4.47,KENT COUNTY COUNCIL (KCS),4900,ECONOMIC DEVELOPMENT
055235100041,ELECTRICITY,01/06/2020,5.26,KENT COUNTY COUNCIL (KCS),4900,ECONOMIC DEVELOPMENT
055235100041,ELECTRICITY,01/06/2020,18.16,KENT COUNTY COUNCIL (KCS),4900,ECONOMIC DEVELOPMENT
055235100041,ELECTRICITY,01/06/2020,149.72,KENT COUNTY COUNCIL (KCS),4900,PROPERTY & FACILITIES
055235100041,ELECTRICITY,01/06/2020,451.72,KENT COUNTY COUNCIL (KCS),4900,LEISURE & CULTURE
055235100041,ELECTRICITY,01/06/2020,38.4,KENT COUNTY COUNCIL (KCS),4900,LEISURE & CULTURE
055235100041,ELECTRICITY,01/06/2020,191.99,KENT COUNTY COUNCIL (KCS),4900,PROPERTY & FACILITIES
055235100041,ELECTRICITY,01/06/2020,205.54,KENT COUNTY COUNCIL (KCS),4900,PROPERTY & FACILITIES
055235100041,ELECTRICITY,01/06/2020,474.32,KENT COUNTY COUNCIL (KCS),4900,PROPERTY & FACILITIES
055235100041,ELECTRICITY,01/06/2020,11.29,KENT COUNTY COUNCIL (KCS),4900,SPATIAL PLANNING
055235100041,ELECTRICITY,01/06/2020,112.93,KENT COUNTY COUNCIL (KCS),4900,LEISURE & CULTURE
055235100041,ELECTRICITY,01/06/2020,38.4,KENT COUNTY COUNCIL (KCS),4900,PROPERTY & FACILITIES
055235100041,ELECTRICITY,01/06/2020,519.49,KENT COUNTY COUNCIL (KCS),4900,PROPERTY & FACILITIES
055235100041,ELECTRICITY,01/06/2020,214.57,KENT COUNTY COUNCIL (KCS),4900,PROPERTY & FACILITIES
055235100041,ELECTRICITY,01/06/2020,1538.29,KENT COUNTY COUNCIL (KCS),4900,LEISURE & CULTURE
055235100041,ELECTRICITY,01/06/2020,23.42,KENT COUNTY COUNCIL (KCS),4900,PARKING SERVICES
055235100041,ELECTRICITY,01/06/2020,444.93,KENT COUNTY COUNCIL (KCS),4900,PARKING SERVICES
055235100041,ELECTRICITY,01/06/2020,206.11,KENT COUNTY COUNCIL (KCS),4900,PARKING SERVICES
055235100041,ELECTRICITY,01/06/2020,3916.18,KENT COUNTY COUNCIL (KCS),4900,PARKING SERVICES
055235100041,ELECTRICITY,01/06/2020,264.87,KENT COUNTY COUNCIL (KCS),4900,LEISURE & CULTURE
055235100041,ELECTRICITY,01/06/2020,283.44,KENT COUNTY COUNCIL (KCS),4900,PROPERTY & FACILITIES
055235100041,GAS,01/06/2020,2968.6,KENT COUNTY COUNCIL (KCS),4900,LEISURE & CULTURE
055235100041,ELECTRICITY,01/06/2020,1630.82,KENT COUNTY COUNCIL (KCS),4900,PROPERTY & FACILITIES
055235100041,ELECTRICITY,01/06/2020,231.91,KENT COUNTY COUNCIL (KCS),4900,PROPERTY & FACILITIES
055235100041,ELECTRICITY,01/06/2020,63.02,KENT COUNTY COUNCIL (KCS),4900,PROPERTY & FACILITIES
055235100041,ELECTRICITY,01/06/2020,2170.38,KENT COUNTY COUNCIL (KCS),4900,PARKING SERVICES
055235100041,ELECTRICITY,01/06/2020,2.1,KENT COUNTY COUNCIL (KCS),4900,PROPERTY & FACILITIES
055235100041,ELECTRICITY,01/06/2020,222.67,KENT COUNTY COUNCIL (KCS),4900,PROPERTY & FACILITIES
055235100041,ELECTRICITY,01/06/2020,529.36,KENT COUNTY COUNCIL (KCS),4900,PROPERTY & FACILITIES
055235100041,ELECTRICITY,01/06/2020,20.59,KENT COUNTY COUNCIL (KCS),4900,PROPERTY & FACILITIES
055235100041,ELECTRICITY,01/06/2020,142,KENT COUNTY COUNCIL (KCS),4900,PROPERTY & FACILITIES
055235100041,ELECTRICITY,01/06/2020,819.25,KENT COUNTY COUNCIL (KCS),4900,PROPERTY & FACILITIES
055235100041,ELECTRICITY,01/06/2020,48.97,KENT COUNTY COUNCIL (KCS),4900,PROPERTY & FACILITIES
055235100041,ELECTRICITY,01/06/2020,13.3,KENT COUNTY COUNCIL (KCS),4900,PROPERTY & FACILITIES
055235100041,ELECTRICITY,01/06/2020,458.21,KENT COUNTY COUNCIL (KCS),4900,PARKING SERVICES
055235100041,ELECTRICITY,01/06/2020,0.44,KENT COUNTY COUNCIL (KCS),4900,PROPERTY & FACILITIES
055235100041,ELECTRICITY,01/06/2020,47.01,KENT COUNTY COUNCIL (KCS),4900,PROPERTY & FACILITIES
055235100041,ELECTRICITY,01/06/2020,111.76,KENT COUNTY COUNCIL (KCS),4900,PROPERTY & FACILITIES
055235100041,ELECTRICITY,01/06/2020,4.35,KENT COUNTY COUNCIL (KCS),4900,PROPERTY & FACILITIES
055235100041,ELECTRICITY,01/06/2020,29.98,KENT COUNTY COUNCIL (KCS),4900,PROPERTY & FACILITIES
055235100041,ELECTRICITY,01/06/2020,172.96,KENT COUNTY COUNCIL (KCS),4900,PROPERTY & FACILITIES
055235100041,ELECTRICITY,01/06/2020,516.04,KENT COUNTY COUNCIL (KCS),4900,HOUSING
055235100041,ELECTRICITY,01/06/2020,158.74,KENT COUNTY COUNCIL (KCS),4900,HOUSING
055235100041,GAS,01/06/2020,273.66,KENT COUNTY COUNCIL (KCS),4900,HOUSING
055235100041,ELECTRICITY,01/06/2020,433.26,KENT COUNTY COUNCIL (KCS),4900,HOUSING
055235100041,ELECTRICITY,01/06/2020,146.39,KENT COUNTY COUNCIL (KCS),4900,PARKING SERVICES
055235100041,ELECTRICITY,01/06/2020,2781.42,KENT COUNTY COUNCIL (KCS),4900,PARKING SERVICES
055235100041,ELECTRICITY,01/06/2020,34.79,KENT COUNTY COUNCIL (KCS),4900,ECONOMIC DEVELOPMENT
055235100041,ELECTRICITY,01/06/2020,60.86,KENT COUNTY COUNCIL (KCS),4900,LEISURE & CULTURE
055235100041,GAS,01/06/2020,49.84,KENT COUNTY COUNCIL (KCS),4900,LEISURE & CULTURE
055235100041,GAS,01/06/2020,36.65,KENT COUNTY COUNCIL (KCS),4900,LEISURE & CULTURE
055235100041,ELECTRICITY,01/06/2020,39.28,KENT COUNTY COUNCIL (KCS),4900,HOUSING
055235100041,ELECTRICITY,01/06/2020,41.48,KENT COUNTY COUNCIL (KCS),4900,PROPERTY & FACILITIES
055235100041,ELECTRICITY,01/06/2020,1.59,KENT COUNTY COUNCIL (KCS),4900,PARKING SERVICES
055235100041,ELECTRICITY,01/06/2020,33.53,KENT COUNTY COUNCIL (KCS),4900,PARKING SERVICES
055235100041,ELECTRICITY,01/06/2020,3.3,KENT COUNTY COUNCIL (KCS),4900,PROPERTY & FACILITIES
055235100041,ELECTRICITY,01/06/2020,13.05,KENT COUNTY COUNCIL (KCS),4900,PARKING SERVICES
055235100041,ELECTRICITY,01/06/2020,20.65,KENT COUNTY COUNCIL (KCS),4900,PARKING SERVICES
055235100041,ELECTRICITY,01/06/2020,1.59,KENT COUNTY COUNCIL (KCS),4900,PROPERTY & FACILITIES
055235100041,ELECTRICITY,01/06/2020,80.4,KENT COUNTY COUNCIL (KCS),4900,PARKING SERVICES
055235100041,ELECTRICITY,01/06/2020,35.41,KENT COUNTY COUNCIL (KCS),4900,PARKING SERVICES
055235100041,ELECTRICITY,01/06/2020,11.28,KENT COUNTY COUNCIL (KCS),4900,PROPERTY & FACILITIES
055235100041,ELECTRICITY,01/06/2020,2.86,KENT COUNTY COUNCIL (KCS),4900,PROPERTY & FACILITIES
055235100041,ELECTRICITY,01/06/2020,6.78,KENT COUNTY COUNCIL (KCS),4900,PROPERTY & FACILITIES
055235100041,ELECTRICITY,01/06/2020,6.45,KENT COUNTY COUNCIL (KCS),4900,PARKING SERVICES
055235100041,ELECTRICITY,01/06/2020,3.8,KENT COUNTY COUNCIL (KCS),4900,PROPERTY & FACILITIES
055235100041,ELECTRICITY,01/06/2020,4.83,KENT COUNTY COUNCIL (KCS),4900,PARKING SERVICES
055235100041,ELECTRICITY,01/06/2020,5.72,KENT COUNTY COUNCIL (KCS),4900,PARKING SERVICES
055235100041,ELECTRICITY,01/06/2020,12.87,KENT COUNTY COUNCIL (KCS),4900,PARKING SERVICES
055235100041,ELECTRICITY,01/06/2020,4.83,KENT COUNTY COUNCIL (KCS),4900,PROPERTY & FACILITIES
055235100041,ELECTRICITY,01/06/2020,4.18,KENT COUNTY COUNCIL (KCS),4900,PARKING SERVICES
055235100041,ELECTRICITY,01/06/2020,83.88,KENT COUNTY COUNCIL (KCS),4900,PROPERTY & FACILITIES
055235100041,ELECTRICITY,01/06/2020,3.22,KENT COUNTY COUNCIL (KCS),4900,PARKING SERVICES
055235100041,ELECTRICITY,01/06/2020,67.8,KENT COUNTY COUNCIL (KCS),4900,PARKING SERVICES
055235100041,ELECTRICITY,01/06/2020,6.67,KENT COUNTY COUNCIL (KCS),4900,PROPERTY & FACILITIES
055235100041,ELECTRICITY,01/06/2020,26.39,KENT COUNTY COUNCIL (KCS),4900,PARKING SERVICES
055235100041,ELECTRICITY,01/06/2020,41.77,KENT COUNTY COUNCIL (KCS),4900,PARKING SERVICES
055235100041,ELECTRICITY,01/06/2020,3.22,KENT COUNTY COUNCIL (KCS),4900,PROPERTY & FACILITIES
055235100041,ELECTRICITY,01/06/2020,162.59,KENT COUNTY COUNCIL (KCS),4900,PARKING SERVICES
055235100041,ELECTRICITY,01/06/2020,71.62,KENT COUNTY COUNCIL (KCS),4900,PARKING SERVICES
055235100041,ELECTRICITY,01/06/2020,22.82,KENT COUNTY COUNCIL (KCS),4900,PROPERTY & FACILITIES
055235100041,ELECTRICITY,01/06/2020,5.78,KENT COUNTY COUNCIL (KCS),4900,PROPERTY & FACILITIES
055235100041,ELECTRICITY,01/06/2020,13.7,KENT COUNTY COUNCIL (KCS),4900,PROPERTY & FACILITIES
055235100041,ELECTRICITY,01/06/2020,13.05,KENT COUNTY COUNCIL (KCS),4900,PARKING SERVICES
055235100041,ELECTRICITY,01/06/2020,7.69,KENT COUNTY COUNCIL (KCS),4900,PROPERTY & FACILITIES
055235100041,ELECTRICITY,01/06/2020,9.77,KENT COUNTY COUNCIL (KCS),4900,PARKING SERVICES
055235100041,ELECTRICITY,01/06/2020,11.56,KENT COUNTY COUNCIL (KCS),4900,PARKING SERVICES
055235100041,ELECTRICITY,01/06/2020,26.04,KENT COUNTY COUNCIL (KCS),4900,PARKING SERVICES
055235100041,ELECTRICITY,01/06/2020,9.77,KENT COUNTY COUNCIL (KCS),4900,PROPERTY & FACILITIES
055235100041,ELECTRICITY,01/06/2020,8.46,KENT COUNTY COUNCIL (KCS),4900,PARKING SERVICES
055235100041,ELECTRICITY,01/06/2020,6.85,KENT COUNTY COUNCIL (KCS),4900,PROPERTY & FACILITIES
055235100041,ELECTRICITY,01/06/2020,0.26,KENT COUNTY COUNCIL (KCS),4900,PARKING SERVICES
055235100041,ELECTRICITY,01/06/2020,5.54,KENT COUNTY COUNCIL (KCS),4900,PARKING SERVICES
055235100041,ELECTRICITY,01/06/2020,0.54,KENT COUNTY COUNCIL (KCS),4900,PROPERTY & FACILITIES
055235100041,ELECTRICITY,01/06/2020,2.15,KENT COUNTY COUNCIL (KCS),4900,PARKING SERVICES
055235100041,ELECTRICITY,01/06/2020,3.41,KENT COUNTY COUNCIL (KCS),4900,PARKING SERVICES
055235100041,ELECTRICITY,01/06/2020,0.26,KENT COUNTY COUNCIL (KCS),4900,PROPERTY & FACILITIES
055235100041,ELECTRICITY,01/06/2020,13.27,KENT COUNTY COUNCIL (KCS),4900,PARKING SERVICES
055235100041,ELECTRICITY,01/06/2020,5.85,KENT COUNTY COUNCIL (KCS),4900,PARKING SERVICES
055235100041,ELECTRICITY,01/06/2020,1.86,KENT COUNTY COUNCIL (KCS),4900,PROPERTY & FACILITIES
055235100041,ELECTRICITY,01/06/2020,0.47,KENT COUNTY COUNCIL (KCS),4900,PROPERTY & FACILITIES
055235100041,ELECTRICITY,01/06/2020,1.12,KENT COUNTY COUNCIL (KCS),4900,PROPERTY & FACILITIES
055235100041,ELECTRICITY,01/06/2020,1.07,KENT COUNTY COUNCIL (KCS),4900,PARKING SERVICES
055235100041,ELECTRICITY,01/06/2020,0.63,KENT COUNTY COUNCIL (KCS),4900,PROPERTY & FACILITIES
055235100041,ELECTRICITY,01/06/2020,0.8,KENT COUNTY COUNCIL (KCS),4900,PARKING SERVICES
055235100041,ELECTRICITY,01/06/2020,0.94,KENT COUNTY COUNCIL (KCS),4900,PARKING SERVICES
055235100041,ELECTRICITY,01/06/2020,2.13,KENT COUNTY COUNCIL (KCS),4900,PARKING SERVICES
055235100041,ELECTRICITY,01/06/2020,0.8,KENT COUNTY COUNCIL (KCS),4900,PROPERTY & FACILITIES
055235100041,ELECTRICITY,01/06/2020,0.69,KENT COUNTY COUNCIL (KCS),4900,PARKING SERVICES
055235100041,GAS,01/06/2020,134.95,KENT COUNTY COUNCIL (KCS),4900,PROPERTY & FACILITIES
055235100041,GAS,01/06/2020,106.06,KENT COUNTY COUNCIL (KCS),4900,HOUSING
055235100041,GAS,01/06/2020,106.06,KENT COUNTY COUNCIL (KCS),4900,HOUSING
055235100041,GAS,01/06/2020,106.06,KENT COUNTY COUNCIL (KCS),4900,HOUSING
055235100041,GAS,01/06/2020,106.06,KENT COUNTY COUNCIL (KCS),4900,HOUSING
055235100041,GAS,01/06/2020,106.06,KENT COUNTY COUNCIL (KCS),4900,HOUSING
055235100041,GAS,01/06/2020,106.06,KENT COUNTY COUNCIL (KCS),4900,HOUSING
055235100041,ELECTRICITY,01/06/2020,244.03,KENT COUNTY COUNCIL (KCS),4900,HOUSING
055235100041,GAS,01/06/2020,26.87,KENT COUNTY COUNCIL (KCS),4900,HOUSING
055235100041,GAS,01/06/2020,53.32,KENT COUNTY COUNCIL (KCS),4900,HOUSING
055235100041,GAS,01/06/2020,49.89,KENT COUNTY COUNCIL (KCS),4900,HOUSING
055235100041,GAS,01/06/2020,18.92,KENT COUNTY COUNCIL (KCS),4900,HOUSING
055235100041,GAS,01/06/2020,17.66,KENT COUNTY COUNCIL (KCS),4900,HOUSING
055235100041,GAS,01/06/2020,20.69,KENT COUNTY COUNCIL (KCS),4900,HOUSING
055235100041,GAS,01/06/2020,27.23,KENT COUNTY COUNCIL (KCS),4900,HOUSING
055235100041,GAS,01/06/2020,23.37,KENT COUNTY COUNCIL (KCS),4900,HOUSING
055235100041,GAS,01/06/2020,29.45,KENT COUNTY COUNCIL (KCS),4900,HOUSING
055235100041,GAS,01/06/2020,31.22,KENT COUNTY COUNCIL (KCS),4900,HOUSING
055235100041,GAS,01/06/2020,24.17,KENT COUNTY COUNCIL (KCS),4900,HOUSING
055235100041,GAS,01/06/2020,15.66,KENT COUNTY COUNCIL (KCS),4900,HOUSING
055235102565,WATER,08/06/2020,397.02,SCOTTISH WATER BUSINESS STREAM LTD,4900,LEISURE & CULTURE
055235102565,WATER,08/06/2020,33.84,SCOTTISH WATER BUSINESS STREAM LTD,4900,LEISURE & CULTURE
055235102565,WATER,08/06/2020,643.96,SCOTTISH WATER BUSINESS STREAM LTD,4900,PROPERTY & FACILITIES
055235102565,WATER,08/06/2020,35.25,SCOTTISH WATER BUSINESS STREAM LTD,4900,PROPERTY & FACILITIES
055235102565,WATER,08/06/2020,100.19,SCOTTISH WATER BUSINESS STREAM LTD,4900,LEISURE & CULTURE
055237102429,DISPOSAL COSTS,15/06/2020,4711.92,BRITANIACREST RECYCLING LTD,7392,WASTE & RECYLING
055238102429,DISPOSAL COSTS,15/06/2020,4620.72,BRITANIACREST RECYCLING LTD,7392,WASTE & RECYLING
055239102429,DISPOSAL COSTS,15/06/2020,1449.08,BRITANIACREST RECYCLING LTD,7392,WASTE & RECYLING
055243100846,BOARD & LODGING CHARGES,01/06/2020,4725,GRANGE HOTEL,7011,HOUSING
055243100846,BOARD & LODGING CHARGES,01/06/2020,8513.42,GRANGE HOTEL,7011,HOUSING
055245100917,BOARD & LODGING CHARGES,01/06/2020,816.69,WIMBLEHURST HOTEL,7011,HOUSING
055246103771,REACTIVE MAINTENANCE,01/06/2020,1039.5,Scotscape Smartscape Limited,780,PARKING SERVICES
055251103462,MISCELLANEOUS INSURANCES,01/06/2020,19583.2,JLT Speciality Ltd,8111,FINANCE
055252100161,MISCELLANEOUS INSURANCES,01/06/2020,25976.21,ZURICH INSURANCE COMPANY,6300,FINANCE
055253100161,MISCELLANEOUS INSURANCES,01/06/2020,3502.62,ZURICH INSURANCE COMPANY,6300,FINANCE
055254100161,MISCELLANEOUS INSURANCES,01/06/2020,244063.37,ZURICH INSURANCE COMPANY,6300,FINANCE
055255100161,MISCELLANEOUS INSURANCES,01/06/2020,2873.36,ZURICH INSURANCE COMPANY,6300,FINANCE
055260103602,PLANNED PREVENTATIVE MAINTENANCE,22/06/2020,16164,MountJoy Limited,1771,PROPERTY & FACILITIES
055286103821,VOLUNTARY & COMMUNITY GRANTS,08/06/2020,631.62,Horsham Fires & Flues,7999,ECONOMIC DEVELOPMENT
055289100941,AGENCY STAFF,22/06/2020,2028,DRIVER HIRE GATWICK LTD,7361,WASTE & RECYLING
055289100941,AGENCY STAFF,22/06/2020,185.23,DRIVER HIRE GATWICK LTD,7361,STREET SCENE & FLEET
055295103856,USE OF CONSULTANTS,08/06/2020,8872.8,Iceni Projects Ltd,7392,SPATIAL PLANNING
055296102541,ICT CONTRACTS,08/06/2020,960,NLIGHTN-IT LTD,4816,TECHNOLOGY
055298100917,BOARD & LODGING CHARGES,08/06/2020,945,WIMBLEHURST HOTEL,7011,HOUSING
055320102449,ICT CONTRACTS,15/06/2020,1170,TECHNOLOGY ONE (UK) LTD,7372,HUMAN RESOURCES & ORG DEVELOPMENT
055325102347,ICT CONTRACTS,22/06/2020,2134.58,BARTEC AUTO ID LTD,5013,WASTE & RECYLING
055325102347,ICT CONTRACTS,22/06/2020,5692.24,BARTEC AUTO ID LTD,5013,STREET SCENE & FLEET
055325102347,ICT CONTRACTS,22/06/2020,16365.18,BARTEC AUTO ID LTD,5013,WASTE & RECYLING
055326102769,EQUIPMENT & TOOLS-REPAIR & MNT,29/06/2020,1995,Derek Collis t/a DelWood,780,LEISURE & CULTURE
055344102429,DISPOSAL COSTS,22/06/2020,2058.11,BRITANIACREST RECYCLING LTD,7392,WASTE & RECYLING
055345102429,DISPOSAL COSTS,22/06/2020,1318.95,BRITANIACREST RECYCLING LTD,7392,WASTE & RECYLING
055346102429,DISPOSAL COSTS,22/06/2020,4218.24,BRITANIACREST RECYCLING LTD,7392,WASTE & RECYLING
055347102429,DISPOSAL COSTS,22/06/2020,4561.44,BRITANIACREST RECYCLING LTD,7392,WASTE & RECYLING
055348102429,EQUIPMENT & TOOLS-HIRE,22/06/2020,1112.36,BRITANIACREST RECYCLING LTD,7392,WASTE & RECYLING
055352102598,AGENCY STAFF,22/06/2020,652.68,THE BEST CONNECTION GROUP LTD,7361,WASTE & RECYLING
055354101725,AGENCY STAFF,08/06/2020,1980,SELLICK PARTNERSHIP LTD,7361,LEGAL & DEMOCRATIC
055355103602,PLANNED PREVENTATIVE MAINTENANCE,22/06/2020,677.15,MountJoy Limited,1771,LEISURE & CULTURE
055355103602,PLANNED PREVENTATIVE MAINTENANCE,22/06/2020,690,MountJoy Limited,1771,LEISURE & CULTURE
055355103602,PLANNED PREVENTATIVE MAINTENANCE,22/06/2020,334.28,MountJoy Limited,1771,LEISURE & CULTURE
055355103602,PLANNED PREVENTATIVE MAINTENANCE,22/06/2020,0,MountJoy Limited,1771,LEISURE & CULTURE
055355103602,PLANNED PREVENTATIVE MAINTENANCE,22/06/2020,1020,MountJoy Limited,1771,LEISURE & CULTURE
055355103602,PLANNED PREVENTATIVE MAINTENANCE,22/06/2020,385.72,MountJoy Limited,1771,LEISURE & CULTURE
055355103602,PLANNED PREVENTATIVE MAINTENANCE,22/06/2020,334.28,MountJoy Limited,1771,LEISURE & CULTURE
055355103602,PLANNED PREVENTATIVE MAINTENANCE,22/06/2020,0,MountJoy Limited,1771,LEISURE & CULTURE
055355103602,PLANNED PREVENTATIVE MAINTENANCE,22/06/2020,1251.85,MountJoy Limited,1771,PROPERTY & FACILITIES
055355103602,PLANNED PREVENTATIVE MAINTENANCE,22/06/2020,677.15,MountJoy Limited,1771,PROPERTY & FACILITIES
055355103602,PLANNED PREVENTATIVE MAINTENANCE,22/06/2020,505.72,MountJoy Limited,1771,PARKING SERVICES
055355103602,PLANNED PREVENTATIVE MAINTENANCE,22/06/2020,1114.3,MountJoy Limited,1771,PARKING SERVICES
055355103602,PLANNED PREVENTATIVE MAINTENANCE,22/06/2020,0,MountJoy Limited,1771,PARKING SERVICES
055355103602,PLANNED PREVENTATIVE MAINTENANCE,22/06/2020,0,MountJoy Limited,1771,ECONOMIC DEVELOPMENT
055355103602,PLANNED PREVENTATIVE MAINTENANCE,22/06/2020,0,MountJoy Limited,1771,PROPERTY & FACILITIES
055355103602,PLANNED PREVENTATIVE MAINTENANCE,22/06/2020,1409.57,MountJoy Limited,1771,STREET SCENE & FLEET
055355103602,PLANNED PREVENTATIVE MAINTENANCE,22/06/2020,0,MountJoy Limited,1771,PROPERTY & FACILITIES
055355103602,PLANNED PREVENTATIVE MAINTENANCE,22/06/2020,724.5,MountJoy Limited,1771,LEISURE & CULTURE
055355103602,PLANNED PREVENTATIVE MAINTENANCE,22/06/2020,334.28,MountJoy Limited,1771,PROPERTY & FACILITIES
055355103602,PLANNED PREVENTATIVE MAINTENANCE,22/06/2020,0,MountJoy Limited,1771,HOUSING
055355103602,PLANNED PREVENTATIVE MAINTENANCE,22/06/2020,214.28,MountJoy Limited,1771,PROPERTY & FACILITIES
055355103602,PLANNED PREVENTATIVE MAINTENANCE,22/06/2020,214.28,MountJoy Limited,1771,PROPERTY & FACILITIES
055357103602,PROFESSIONAL FEES,22/06/2020,10956,MountJoy Limited,1771,PROPERTY & FACILITIES
055358103602,REACTIVE MAINTENANCE,22/06/2020,0,MountJoy Limited,1771,LEISURE & CULTURE
055358103602,REACTIVE MAINTENANCE,22/06/2020,0,MountJoy Limited,1771,LEISURE & CULTURE
055358103602,REACTIVE MAINTENANCE,22/06/2020,9.19,MountJoy Limited,1771,PROPERTY & FACILITIES
055358103602,REACTIVE MAINTENANCE,22/06/2020,293.44,MountJoy Limited,1771,PROPERTY & FACILITIES
055358103602,REACTIVE MAINTENANCE,22/06/2020,549.54,MountJoy Limited,1771,PARKING SERVICES
055358103602,REACTIVE MAINTENANCE,22/06/2020,132.66,MountJoy Limited,1771,PARKING SERVICES
055358103602,PLANNED PREVENTATIVE MAINTENANCE,22/06/2020,514.8,MountJoy Limited,1771,PARKING SERVICES
055358103602,REACTIVE MAINTENANCE,22/06/2020,1465.56,MountJoy Limited,1771,PARKING SERVICES
055358103602,REACTIVE MAINTENANCE,22/06/2020,312.58,MountJoy Limited,1771,PARKING SERVICES
055358103602,REACTIVE MAINTENANCE,22/06/2020,1188,MountJoy Limited,1771,PROPERTY & FACILITIES
055358103602,REACTIVE MAINTENANCE,22/06/2020,0,MountJoy Limited,1771,PROPERTY & FACILITIES
055358103602,REACTIVE MAINTENANCE,22/06/2020,0,MountJoy Limited,1771,STREET SCENE & FLEET
055358103602,REACTIVE MAINTENANCE,22/06/2020,306.91,MountJoy Limited,1771,HOUSING
055358103602,REACTIVE MAINTENANCE,22/06/2020,27.49,MountJoy Limited,1771,PROPERTY & FACILITIES
055358103602,REACTIVE MAINTENANCE,22/06/2020,458.12,MountJoy Limited,1771,HOUSING
055358103602,REACTIVE MAINTENANCE,22/06/2020,0,MountJoy Limited,1771,PROPERTY & FACILITIES
055358103602,REACTIVE MAINTENANCE,22/06/2020,0,MountJoy Limited,1771,PROPERTY & FACILITIES
055363103936,APPEAL COSTS,15/06/2020,3600,Mr Richard Langham,8111,DEVELOPMENT
055365100484,TYRES & TUBES (INCL. FITTING),22/06/2020,1807.04,BANDVULC PLUS+,5511,STREET SCENE & FLEET
055367100679,PROFESSIONAL FEES,08/06/2020,630,CRICKMAY CHARTERED SURVEYORS,8911,PROPERTY & FACILITIES
055396100606,GRANTS PAID,22/06/2020,4000,WEST SUSSEX MEDIATION SERVICE,7277,HOUSING
055407102302,PREMISES GENERAL REPAIRS,29/06/2020,794.4,CIA FIRE AND SECURITY LTD,7393,LEISURE & CULTURE
055410100057,PURCHASE OF PROVISIONS,22/06/2020,129.12,Selecta UK Ltd,5499,PROPERTY & FACILITIES
055410100057,EQUIPMENT & TOOLS-HIRE,22/06/2020,77.64,Selecta UK Ltd,5499,STREET SCENE & FLEET
055410100057,PURCHASE OF PROVISIONS,22/06/2020,384.48,Selecta UK Ltd,5499,STREET SCENE & FLEET
055432101344,FRONT OF HOUSE (F.O.H.),15/06/2020,871.06,CPC,1520,LEISURE & CULTURE
055440100041,ELECTRICITY,08/06/2020,484.24,KENT COUNTY COUNCIL (KCS),4900,LEISURE & CULTURE
055440100041,ELECTRICITY,08/06/2020,227.88,KENT COUNTY COUNCIL (KCS),4900,LEISURE & CULTURE
055440100041,GAS,08/06/2020,1736.81,KENT COUNTY COUNCIL (KCS),4900,LEISURE & CULTURE
055440100041,ELECTRICITY,08/06/2020,485.89,KENT COUNTY COUNCIL (KCS),4900,HOUSING
055440100041,ELECTRICITY,08/06/2020,158.78,KENT COUNTY COUNCIL (KCS),4900,HOUSING
055440100041,GAS,08/06/2020,323.11,KENT COUNTY COUNCIL (KCS),4900,HOUSING
055440100041,GAS,08/06/2020,12.75,KENT COUNTY COUNCIL (KCS),4900,LEISURE & CULTURE
055440100041,GAS,08/06/2020,27.08,KENT COUNTY COUNCIL (KCS),4900,LEISURE & CULTURE
055440100041,ELECTRICITY,08/06/2020,106.63,KENT COUNTY COUNCIL (KCS),4900,HOUSING
055440100041,ELECTRICITY,08/06/2020,126.8,KENT COUNTY COUNCIL (KCS),4900,HOUSING
055440100041,ELECTRICITY,08/06/2020,113.61,KENT COUNTY COUNCIL (KCS),4900,HOUSING
055440100041,ELECTRICITY,08/06/2020,137.2,KENT COUNTY COUNCIL (KCS),4900,PARKING SERVICES
055440100041,ELECTRICITY,08/06/2020,2606.9,KENT COUNTY COUNCIL (KCS),4900,PARKING SERVICES
055440100041,GAS,08/06/2020,602.36,KENT COUNTY COUNCIL (KCS),4900,LEISURE & CULTURE
055440100041,ELECTRICITY,08/06/2020,45.63,KENT COUNTY COUNCIL (KCS),4900,PROPERTY & FACILITIES
055440100041,ELECTRICITY,08/06/2020,278.97,KENT COUNTY COUNCIL (KCS),4900,PROPERTY & FACILITIES
055440100041,ELECTRICITY,08/06/2020,38.01,KENT COUNTY COUNCIL (KCS),4900,HOUSING
055440100041,ELECTRICITY,08/06/2020,40.04,KENT COUNTY COUNCIL (KCS),4900,PROPERTY & FACILITIES
055440100041,ELECTRICITY,08/06/2020,1.54,KENT COUNTY COUNCIL (KCS),4900,PARKING SERVICES
055440100041,ELECTRICITY,08/06/2020,32.37,KENT COUNTY COUNCIL (KCS),4900,PARKING SERVICES
055440100041,ELECTRICITY,08/06/2020,3.19,KENT COUNTY COUNCIL (KCS),4900,PROPERTY & FACILITIES
055440100041,ELECTRICITY,08/06/2020,12.6,KENT COUNTY COUNCIL (KCS),4900,PARKING SERVICES
055440100041,ELECTRICITY,08/06/2020,19.94,KENT COUNTY COUNCIL (KCS),4900,PARKING SERVICES
055440100041,ELECTRICITY,08/06/2020,1.54,KENT COUNTY COUNCIL (KCS),4900,PROPERTY & FACILITIES
055440100041,ELECTRICITY,08/06/2020,77.63,KENT COUNTY COUNCIL (KCS),4900,PARKING SERVICES
055440100041,ELECTRICITY,08/06/2020,34.19,KENT COUNTY COUNCIL (KCS),4900,PARKING SERVICES
055440100041,ELECTRICITY,08/06/2020,10.9,KENT COUNTY COUNCIL (KCS),4900,PROPERTY & FACILITIES
055440100041,ELECTRICITY,08/06/2020,2.76,KENT COUNTY COUNCIL (KCS),4900,PROPERTY & FACILITIES
055440100041,ELECTRICITY,08/06/2020,6.54,KENT COUNTY COUNCIL (KCS),4900,PROPERTY & FACILITIES
055440100041,ELECTRICITY,08/06/2020,6.23,KENT COUNTY COUNCIL (KCS),4900,PARKING SERVICES
055440100041,ELECTRICITY,08/06/2020,3.67,KENT COUNTY COUNCIL (KCS),4900,PROPERTY & FACILITIES
055440100041,ELECTRICITY,08/06/2020,4.67,KENT COUNTY COUNCIL (KCS),4900,PARKING SERVICES
055440100041,ELECTRICITY,08/06/2020,5.52,KENT COUNTY COUNCIL (KCS),4900,PARKING SERVICES
055440100041,ELECTRICITY,08/06/2020,12.43,KENT COUNTY COUNCIL (KCS),4900,PARKING SERVICES
055440100041,ELECTRICITY,08/06/2020,4.67,KENT COUNTY COUNCIL (KCS),4900,PROPERTY & FACILITIES
055440100041,ELECTRICITY,08/06/2020,4.04,KENT COUNTY COUNCIL (KCS),4900,PARKING SERVICES
055440100041,ELECTRICITY,08/06/2020,81.02,KENT COUNTY COUNCIL (KCS),4900,PROPERTY & FACILITIES
055440100041,ELECTRICITY,08/06/2020,3.11,KENT COUNTY COUNCIL (KCS),4900,PARKING SERVICES
055440100041,ELECTRICITY,08/06/2020,65.5,KENT COUNTY COUNCIL (KCS),4900,PARKING SERVICES
055440100041,ELECTRICITY,08/06/2020,6.45,KENT COUNTY COUNCIL (KCS),4900,PROPERTY & FACILITIES
055440100041,ELECTRICITY,08/06/2020,25.5,KENT COUNTY COUNCIL (KCS),4900,PARKING SERVICES
055440100041,ELECTRICITY,08/06/2020,40.35,KENT COUNTY COUNCIL (KCS),4900,PARKING SERVICES
055440100041,ELECTRICITY,08/06/2020,3.11,KENT COUNTY COUNCIL (KCS),4900,PROPERTY & FACILITIES
055440100041,ELECTRICITY,08/06/2020,157.08,KENT COUNTY COUNCIL (KCS),4900,PARKING SERVICES
055440100041,ELECTRICITY,08/06/2020,69.19,KENT COUNTY COUNCIL (KCS),4900,PARKING SERVICES
055440100041,ELECTRICITY,08/06/2020,22.05,KENT COUNTY COUNCIL (KCS),4900,PROPERTY & FACILITIES
055440100041,ELECTRICITY,08/06/2020,5.58,KENT COUNTY COUNCIL (KCS),4900,PROPERTY & FACILITIES
055440100041,ELECTRICITY,08/06/2020,13.24,KENT COUNTY COUNCIL (KCS),4900,PROPERTY & FACILITIES
055440100041,ELECTRICITY,08/06/2020,12.61,KENT COUNTY COUNCIL (KCS),4900,PARKING SERVICES
055440100041,ELECTRICITY,08/06/2020,7.43,KENT COUNTY COUNCIL (KCS),4900,PROPERTY & FACILITIES
055440100041,ELECTRICITY,08/06/2020,9.44,KENT COUNTY COUNCIL (KCS),4900,PARKING SERVICES
055440100041,ELECTRICITY,08/06/2020,11.17,KENT COUNTY COUNCIL (KCS),4900,PARKING SERVICES
055440100041,ELECTRICITY,08/06/2020,25.15,KENT COUNTY COUNCIL (KCS),4900,PARKING SERVICES
055440100041,ELECTRICITY,08/06/2020,9.44,KENT COUNTY COUNCIL (KCS),4900,PROPERTY & FACILITIES
055440100041,ELECTRICITY,08/06/2020,8.17,KENT COUNTY COUNCIL (KCS),4900,PARKING SERVICES
055440100041,ELECTRICITY,08/06/2020,6.62,KENT COUNTY COUNCIL (KCS),4900,PROPERTY & FACILITIES
055440100041,ELECTRICITY,08/06/2020,0.25,KENT COUNTY COUNCIL (KCS),4900,PARKING SERVICES
055440100041,ELECTRICITY,08/06/2020,5.36,KENT COUNTY COUNCIL (KCS),4900,PARKING SERVICES
055440100041,ELECTRICITY,08/06/2020,0.53,KENT COUNTY COUNCIL (KCS),4900,PROPERTY & FACILITIES
055440100041,ELECTRICITY,08/06/2020,2.09,KENT COUNTY COUNCIL (KCS),4900,PARKING SERVICES
055440100041,ELECTRICITY,08/06/2020,3.3,KENT COUNTY COUNCIL (KCS),4900,PARKING SERVICES
055440100041,ELECTRICITY,08/06/2020,0.25,KENT COUNTY COUNCIL (KCS),4900,PROPERTY & FACILITIES
055440100041,ELECTRICITY,08/06/2020,12.85,KENT COUNTY COUNCIL (KCS),4900,PARKING SERVICES
055440100041,ELECTRICITY,08/06/2020,5.66,KENT COUNTY COUNCIL (KCS),4900,PARKING SERVICES
055440100041,ELECTRICITY,08/06/2020,1.8,KENT COUNTY COUNCIL (KCS),4900,PROPERTY & FACILITIES
055440100041,ELECTRICITY,08/06/2020,0.46,KENT COUNTY COUNCIL (KCS),4900,PROPERTY & FACILITIES
055440100041,ELECTRICITY,08/06/2020,1.08,KENT COUNTY COUNCIL (KCS),4900,PROPERTY & FACILITIES
055440100041,ELECTRICITY,08/06/2020,1.03,KENT COUNTY COUNCIL (KCS),4900,PARKING SERVICES
055440100041,ELECTRICITY,08/06/2020,0.61,KENT COUNTY COUNCIL (KCS),4900,PROPERTY & FACILITIES
055440100041,ELECTRICITY,08/06/2020,0.77,KENT COUNTY COUNCIL (KCS),4900,PARKING SERVICES
055440100041,ELECTRICITY,08/06/2020,0.91,KENT COUNTY COUNCIL (KCS),4900,PARKING SERVICES
055440100041,ELECTRICITY,08/06/2020,2.06,KENT COUNTY COUNCIL (KCS),4900,PARKING SERVICES
055440100041,ELECTRICITY,08/06/2020,0.77,KENT COUNTY COUNCIL (KCS),4900,PROPERTY & FACILITIES
055440100041,ELECTRICITY,08/06/2020,0.67,KENT COUNTY COUNCIL (KCS),4900,PARKING SERVICES
055440100041,ELECTRICITY,08/06/2020,121.23,KENT COUNTY COUNCIL (KCS),4900,PARKING SERVICES
055440100041,ELECTRICITY,08/06/2020,49.07,KENT COUNTY COUNCIL (KCS),4900,PROPERTY & FACILITIES
055440100041,ELECTRICITY,08/06/2020,109.31,KENT COUNTY COUNCIL (KCS),4900,ENVIRONMENTAL SERVICES/LICENSING
055440100041,ELECTRICITY,08/06/2020,55.98,KENT COUNTY COUNCIL (KCS),4900,HOUSING
055440100041,GAS,08/06/2020,74.92,KENT COUNTY COUNCIL (KCS),4900,HOUSING
055440100041,ELECTRICITY,08/06/2020,56.32,KENT COUNTY COUNCIL (KCS),4900,HOUSING
055440100041,ELECTRICITY,08/06/2020,206.05,KENT COUNTY COUNCIL (KCS),4900,HOUSING
055440100041,ELECTRICITY,08/06/2020,172.42,KENT COUNTY COUNCIL (KCS),4900,HOUSING
055440100041,ELECTRICITY,08/06/2020,96.61,KENT COUNTY COUNCIL (KCS),4900,HOUSING
055440100041,ELECTRICITY,08/06/2020,213.3,KENT COUNTY COUNCIL (KCS),4900,HOUSING
055440100041,ELECTRICITY,08/06/2020,220.7,KENT COUNTY COUNCIL (KCS),4900,HOUSING
055440100041,ELECTRICITY,08/06/2020,52.35,KENT COUNTY COUNCIL (KCS),4900,HOUSING
055440100041,GAS,08/06/2020,74.92,KENT COUNTY COUNCIL (KCS),4900,HOUSING
055440100041,ELECTRICITY,08/06/2020,109.29,KENT COUNTY COUNCIL (KCS),4900,HOUSING
055440100041,ELECTRICITY,08/06/2020,102.98,KENT COUNTY COUNCIL (KCS),4900,HOUSING
055440100041,ELECTRICITY,08/06/2020,53.82,KENT COUNTY COUNCIL (KCS),4900,HOUSING
055440100041,GAS,08/06/2020,33.18,KENT COUNTY COUNCIL (KCS),4900,HOUSING
055440100041,GAS,08/06/2020,29.75,KENT COUNTY COUNCIL (KCS),4900,HOUSING
055440100041,GAS,08/06/2020,31.83,KENT COUNTY COUNCIL (KCS),4900,HOUSING
055440100041,GAS,08/06/2020,29.22,KENT COUNTY COUNCIL (KCS),4900,HOUSING
055452103001,BOARD & LODGING CHARGES,08/06/2020,3038,Three Bridges Lodge,7011,HOUSING
055461101230,AGENCY STAFF,08/06/2020,1200,M W VEHICLE ENGINEERS LTD,5013,STREET SCENE & FLEET
055467100917,BOARD & LODGING CHARGES,08/06/2020,1195.88,WIMBLEHURST HOTEL,7011,HOUSING
055469102888,AGENCY STAFF,15/06/2020,264.96,SERVICE CARE SOLUTIONS LTD,5511,STREET SCENE & FLEET
055469102888,AGENCY STAFF,15/06/2020,397.44,SERVICE CARE SOLUTIONS LTD,5511,WASTE & RECYLING
055471100695,BOARD & LODGING CHARGES,08/06/2020,1512,THE OLD RECTORY GUEST HOUSE LTD,7011,HOUSING
055472100695,BOARD & LODGING CHARGES,08/06/2020,1674,THE OLD RECTORY GUEST HOUSE LTD,7011,HOUSING
055473100695,BOARD & LODGING CHARGES,08/06/2020,1674,THE OLD RECTORY GUEST HOUSE LTD,7011,HOUSING
055476100846,BOARD & LODGING CHARGES,08/06/2020,4725,GRANGE HOTEL,7011,HOUSING
055476100846,BOARD & LODGING CHARGES,08/06/2020,8091.26,GRANGE HOTEL,7011,HOUSING
055477102564,IT PROJECTS,22/06/2020,1141,GRANICUS LLC,7379,COMMUNICATIONS
055480100111,PREMISES GENERAL REPAIRS,22/06/2020,1444.94,C BREWER & SONS LTD,5039,LEISURE & CULTURE
055482103401,PROFESSIONAL FEES,15/06/2020,720,Victoria Berridge,8111,PROPERTY & FACILITIES
055491100517,CONTRACT CLEANING,22/06/2020,141.3,MONITOR CLEANING SERVICES LTD,7349,LEISURE & CULTURE
055491100517,CONTRACT CLEANING,22/06/2020,565.18,MONITOR CLEANING SERVICES LTD,7349,LEISURE & CULTURE
055491100517,CONTRACT CLEANING,22/06/2020,565.18,MONITOR CLEANING SERVICES LTD,7349,LEISURE & CULTURE
055491100517,CONTRACT CLEANING,22/06/2020,16.31,MONITOR CLEANING SERVICES LTD,7349,LEISURE & CULTURE
055491100517,CONTRACT CLEANING,22/06/2020,32.6,MONITOR CLEANING SERVICES LTD,7349,LEISURE & CULTURE
055491100517,CONTRACT CLEANING,22/06/2020,70.64,MONITOR CLEANING SERVICES LTD,7349,LEISURE & CULTURE
055491100517,CONTRACT CLEANING,22/06/2020,756.74,MONITOR CLEANING SERVICES LTD,7349,PROPERTY & FACILITIES
055491100517,CONTRACT CLEANING,22/06/2020,669.53,MONITOR CLEANING SERVICES LTD,7349,PROPERTY & FACILITIES
055491100517,CONTRACT CLEANING,22/06/2020,706.48,MONITOR CLEANING SERVICES LTD,7349,PARKING SERVICES
055491100517,CONTRACT CLEANING,22/06/2020,989.06,MONITOR CLEANING SERVICES LTD,7349,PARKING SERVICES
055491100517,CONTRACT CLEANING,22/06/2020,1024.85,MONITOR CLEANING SERVICES LTD,7349,PARKING SERVICES
055491100517,CONTRACT CLEANING,22/06/2020,18.85,MONITOR CLEANING SERVICES LTD,7349,PROPERTY & FACILITIES
055491100517,CONTRACT CLEANING,22/06/2020,88.31,MONITOR CLEANING SERVICES LTD,7349,PROPERTY & FACILITIES
055491100517,CONTRACT CLEANING,22/06/2020,777.12,MONITOR CLEANING SERVICES LTD,7349,STREET SCENE & FLEET
055491100517,CONTRACT CLEANING,22/06/2020,558.38,MONITOR CLEANING SERVICES LTD,7349,LEISURE & CULTURE
055491100517,CONTRACT CLEANING,22/06/2020,351.83,MONITOR CLEANING SERVICES LTD,7349,HOUSING
055491100517,CONTRACT CLEANING,22/06/2020,1234.97,MONITOR CLEANING SERVICES LTD,7349,PROPERTY & FACILITIES
055491100517,CONTRACT CLEANING,22/06/2020,138.58,MONITOR CLEANING SERVICES LTD,7349,PROPERTY & FACILITIES
055494100714,MOBILE CALLS & RENTAL,15/06/2020,1916.56,VODAFONE LTD,4814,TECHNOLOGY
055522100094,POSTAGE PACKAGING DISTRIBUTION,29/06/2020,1844.92,ROYAL MAIL,7399,CUSTOMER SERVICES
055522100094,POSTAGE PACKAGING DISTRIBUTION,29/06/2020,32.69,ROYAL MAIL,7399,PARKING SERVICES
055527103512,ICT CONTRACTS,15/06/2020,9504,Freshworks Inc,5734,TECHNOLOGY
055531102491,PROFESSIONAL FEES,08/06/2020,690,BYJOVE MEDIA,7399,ECONOMIC DEVELOPMENT
055568100156,RENTS,29/06/2020,57500,WEST SUSSEX COUNTY COUNCIL,9405,PROPERTY & FACILITIES
055569103939,VOLUNTARY & COMMUNITY GRANTS,15/06/2020,2000,TrainerCare Ltd T/A Warden Ventures Ltd,7999,ECONOMIC DEVELOPMENT
055574101566,SHORT COURSE FEES,15/06/2020,515,LAWYERS IN LOCAL GOVERNMENT,8111,LEGAL & DEMOCRATIC
055576100941,AGENCY STAFF,15/06/2020,621.24,DRIVER HIRE GATWICK LTD,7361,STREET SCENE & FLEET
055577100941,AGENCY STAFF,15/06/2020,685.03,DRIVER HIRE GATWICK LTD,7361,WASTE & RECYLING
055581102580,PLANNED PREVENTATIVE MAINTENANCE,15/06/2020,1906.8,BORDEN LIFTING SERVICES,1799,LEISURE & CULTURE
055583103945,PROFESSIONAL FEES,22/06/2020,1298.7,Medical Premises Consultants,7392,PROPERTY & FACILITIES
055586101230,AGENCY STAFF,15/06/2020,1200,M W VEHICLE ENGINEERS LTD,5013,STREET SCENE & FLEET
055606100517,CONTRACT CLEANING,22/06/2020,717.55,MONITOR CLEANING SERVICES LTD,7349,PROPERTY & FACILITIES
055621100261,MONITORING SERVICE PAYMENTS,22/06/2020,7033.7,MOLE VALLEY DISRICT COUNCIL,9405,ENVIRONMENTAL SERVICES/LICENSING
055636102598,AGENCY STAFF,29/06/2020,837.94,THE BEST CONNECTION GROUP LTD,7361,WASTE & RECYLING
055637100710,AGENCY STAFF,15/06/2020,1379.38,THE OYSTER PARTNERSHIP,7361,DEVELOPMENT
055638100710,AGENCY STAFF,15/06/2020,1097.4,THE OYSTER PARTNERSHIP,7361,DEVELOPMENT
055643101725,AGENCY STAFF,15/06/2020,2673,SELLICK PARTNERSHIP LTD,7361,LEGAL & DEMOCRATIC
055644101575,SECURITY CONTRACT FEES,22/06/2020,894.6,A P SECURITY (APS) LTD,7393,LEISURE & CULTURE
055644101575,SECURITY CONTRACT FEES,22/06/2020,447.6,A P SECURITY (APS) LTD,7393,PARKING SERVICES
055644101575,SECURITY CONTRACT FEES,22/06/2020,1527.6,A P SECURITY (APS) LTD,7393,PARKING SERVICES
055644101575,SECURITY CONTRACT FEES,22/06/2020,447.6,A P SECURITY (APS) LTD,7393,PARKING SERVICES
055644101575,SECURITY CONTRACT FEES,22/06/2020,447.6,A P SECURITY (APS) LTD,7393,PARKING SERVICES
055644101575,SECURITY CONTRACT FEES,22/06/2020,447.6,A P SECURITY (APS) LTD,7393,PROPERTY & FACILITIES
055644101575,SECURITY CONTRACT FEES,22/06/2020,447.6,A P SECURITY (APS) LTD,7393,PROPERTY & FACILITIES
055645101575,SECURITY CONTRACT FEES,22/06/2020,180,A P SECURITY (APS) LTD,7393,LEISURE & CULTURE
055645101575,SECURITY CONTRACT FEES,22/06/2020,90,A P SECURITY (APS) LTD,7393,LEISURE & CULTURE
055645101575,SECURITY CONTRACT FEES,22/06/2020,630,A P SECURITY (APS) LTD,7393,PROPERTY & FACILITIES
055645101575,SECURITY CONTRACT FEES,22/06/2020,90,A P SECURITY (APS) LTD,7393,PROPERTY & FACILITIES
055645101575,SECURITY CONTRACT FEES,22/06/2020,90,A P SECURITY (APS) LTD,7393,PROPERTY & FACILITIES
055645101575,SECURITY CONTRACT FEES,22/06/2020,90,A P SECURITY (APS) LTD,7393,PROPERTY & FACILITIES
055647102429,DISPOSAL COSTS,29/06/2020,2286.48,BRITANIACREST RECYCLING LTD,7392,WASTE & RECYLING
055648102429,DISPOSAL COSTS,29/06/2020,2340.48,BRITANIACREST RECYCLING LTD,7392,WASTE & RECYLING
055650102429,DISPOSAL COSTS,29/06/2020,6030.96,BRITANIACREST RECYCLING LTD,7392,WASTE & RECYLING
055651102429,DISPOSAL COSTS,29/06/2020,5451.6,BRITANIACREST RECYCLING LTD,7392,WASTE & RECYLING
055652102429,EQUIPMENT & TOOLS-HIRE,29/06/2020,2278.47,BRITANIACREST RECYCLING LTD,7392,WASTE & RECYLING
055662101003,USE OF CONSULTANTS,15/06/2020,504,READING AGRICULTURAL CONSULTANTS LTD,7399,DEVELOPMENT
055663101003,USE OF CONSULTANTS,15/06/2020,504,READING AGRICULTURAL CONSULTANTS LTD,7399,DEVELOPMENT
055664101003,USE OF CONSULTANTS,15/06/2020,504,READING AGRICULTURAL CONSULTANTS LTD,7399,DEVELOPMENT
055665101003,USE OF CONSULTANTS,15/06/2020,504,READING AGRICULTURAL CONSULTANTS LTD,7399,DEVELOPMENT
055681100156,SEARCH FEES,29/06/2020,1464,WEST SUSSEX COUNTY COUNCIL,9405,DEVELOPMENT
055697102274,PAYMENTS MADE FOR SERVICES,15/06/2020,5922.91,MEDISORT LTD,8099,WASTE & RECYLING
055698100037,USE OF CONSULTANTS,22/06/2020,5510.1,CRAWLEY BOROUGH COUNCIL,9405,SPATIAL PLANNING
055700101448,LANDSCAPE WORKS (INC FENCING & GARDENING,15/06/2020,75.52,IDVERDE LTD,780,PROPERTY & FACILITIES
055700101448,LANDSCAPE WORKS (INC FENCING & GARDENING,15/06/2020,15.99,IDVERDE LTD,780,PROPERTY & FACILITIES
055700101448,LANDSCAPE WORKS (INC FENCING & GARDENING,15/06/2020,23.38,IDVERDE LTD,780,LEISURE & CULTURE
055700101448,LANDSCAPE WORKS (INC FENCING & GARDENING,15/06/2020,28.27,IDVERDE LTD,780,PARKING SERVICES
055700101448,LANDSCAPE WORKS (INC FENCING & GARDENING,15/06/2020,55.95,IDVERDE LTD,780,PARKING SERVICES
055700101448,LANDSCAPE WORKS (INC FENCING & GARDENING,15/06/2020,43.9,IDVERDE LTD,780,PARKING SERVICES
055700101448,LANDSCAPE WORKS (INC FENCING & GARDENING,15/06/2020,8.78,IDVERDE LTD,780,PARKING SERVICES
055700101448,LANDSCAPE WORKS (INC FENCING & GARDENING,15/06/2020,2.15,IDVERDE LTD,780,PARKING SERVICES
055700101448,LANDSCAPE WORKS (INC FENCING & GARDENING,15/06/2020,3.29,IDVERDE LTD,780,PARKING SERVICES
055700101448,LANDSCAPE WORKS (INC FENCING & GARDENING,15/06/2020,7.69,IDVERDE LTD,780,PARKING SERVICES
055700101448,LANDSCAPE WORKS (INC FENCING & GARDENING,15/06/2020,42.37,IDVERDE LTD,780,PARKING SERVICES
055700101448,LANDSCAPE WORKS (INC FENCING & GARDENING,15/06/2020,14.27,IDVERDE LTD,780,PARKING SERVICES
055700101448,LANDSCAPE WORKS (INC FENCING & GARDENING,15/06/2020,35.64,IDVERDE LTD,780,PARKING SERVICES
055700101448,LANDSCAPE WORKS (INC FENCING & GARDENING,15/06/2020,10.98,IDVERDE LTD,780,PARKING SERVICES
055700101448,LANDSCAPE WORKS (INC FENCING & GARDENING,15/06/2020,27.43,IDVERDE LTD,780,PARKING SERVICES
055700101448,LANDSCAPE WORKS (INC FENCING & GARDENING,15/06/2020,7.68,IDVERDE LTD,780,PARKING SERVICES
055700101448,LANDSCAPE WORKS (INC FENCING & GARDENING,15/06/2020,240.4,IDVERDE LTD,780,PARKING SERVICES
055700101448,LANDSCAPE WORKS (INC FENCING & GARDENING,15/06/2020,2.19,IDVERDE LTD,780,PARKING SERVICES
055700101448,LANDSCAPE WORKS (INC FENCING & GARDENING,15/06/2020,8.2,IDVERDE LTD,780,PARKING SERVICES
055700101448,LANDSCAPE WORKS (INC FENCING & GARDENING,15/06/2020,88.02,IDVERDE LTD,780,PARKING SERVICES
055700101448,LANDSCAPE WORKS (INC FENCING & GARDENING,15/06/2020,6.58,IDVERDE LTD,780,PARKING SERVICES
055700101448,LANDSCAPE WORKS (INC FENCING & GARDENING,15/06/2020,91.22,IDVERDE LTD,780,PARKING SERVICES
055700101448,LANDSCAPE WORKS (INC FENCING & GARDENING,15/06/2020,9.7,IDVERDE LTD,780,STREET SCENE & FLEET
055700101448,LANDSCAPE WORKS (INC FENCING & GARDENING,15/06/2020,5.48,IDVERDE LTD,780,HOUSING
055700101448,LANDSCAPE WORKS (INC FENCING & GARDENING,15/06/2020,90,IDVERDE LTD,780,HOUSING
055700101448,GRASS CUTTING -EXTERNAL,15/06/2020,5.48,IDVERDE LTD,780,PROPERTY & FACILITIES
055700101448,LANDSCAPE WORKS (INC FENCING & GARDENING,15/06/2020,6.32,IDVERDE LTD,780,PROPERTY & FACILITIES
055700101448,LANDSCAPE WORKS (INC FENCING & GARDENING,15/06/2020,25.73,IDVERDE LTD,780,HOUSING
055700101448,LANDSCAPE WORKS (INC FENCING & GARDENING,15/06/2020,128.11,IDVERDE LTD,780,PROPERTY & FACILITIES
055700101448,LANDSCAPE WORKS (INC FENCING & GARDENING,15/06/2020,7.23,IDVERDE LTD,780,PROPERTY & FACILITIES
055700101448,LANDSCAPE WORKS (INC FENCING & GARDENING,15/06/2020,19.26,IDVERDE LTD,780,PROPERTY & FACILITIES
055700101448,CORE GROUNDS MAINT CONTRACT,15/06/2020,13345.92,IDVERDE LTD,780,LEISURE & CULTURE
055700101448,LANDSCAPE WORKS (INC FENCING & GARDENING,15/06/2020,131.01,IDVERDE LTD,780,LEISURE & CULTURE
055700101448,S106  EXPENDITURE,15/06/2020,286.84,IDVERDE LTD,780,LEISURE & CULTURE
055700101448,S106  EXPENDITURE,15/06/2020,10.04,IDVERDE LTD,780,LEISURE & CULTURE
055700101448,S106  EXPENDITURE,15/06/2020,108.61,IDVERDE LTD,780,LEISURE & CULTURE
055700101448,S106  EXPENDITURE,15/06/2020,6.2,IDVERDE LTD,780,LEISURE & CULTURE
055700101448,S106  EXPENDITURE,15/06/2020,14.5,IDVERDE LTD,780,LEISURE & CULTURE
055700101448,S106  EXPENDITURE,15/06/2020,69.56,IDVERDE LTD,780,LEISURE & CULTURE
055700101448,S106  EXPENDITURE,15/06/2020,25.25,IDVERDE LTD,780,LEISURE & CULTURE
055701103935,VOLUNTARY & COMMUNITY GRANTS,15/06/2020,2000,Little Bean Cafe Billingshurst Limited,7999,ECONOMIC DEVELOPMENT
055703100917,BOARD & LODGING CHARGES,15/06/2020,1195.88,WIMBLEHURST HOTEL,7011,HOUSING
055714101003,USE OF CONSULTANTS,15/06/2020,504,READING AGRICULTURAL CONSULTANTS LTD,7399,DEVELOPMENT
055715101003,USE OF CONSULTANTS,15/06/2020,504,READING AGRICULTURAL CONSULTANTS LTD,7399,DEVELOPMENT
055719100527,ICT CONTRACTS,15/06/2020,4675.81,IMMERVOX LTD,4814,TECHNOLOGY
055725101003,USE OF CONSULTANTS,15/06/2020,504,READING AGRICULTURAL CONSULTANTS LTD,7399,DEVELOPMENT
055743100041,ELECTRICITY,15/06/2020,283.35,KENT COUNTY COUNCIL (KCS),4900,LEISURE & CULTURE
055743100041,ELECTRICITY,15/06/2020,1133.39,KENT COUNTY COUNCIL (KCS),4900,LEISURE & CULTURE
055743100041,ELECTRICITY,15/06/2020,1416.74,KENT COUNTY COUNCIL (KCS),4900,LEISURE & CULTURE
055743100041,ELECTRICITY,15/06/2020,212.27,KENT COUNTY COUNCIL (KCS),4900,LEISURE & CULTURE
055743100041,ELECTRICITY,15/06/2020,125.41,KENT COUNTY COUNCIL (KCS),4900,HOUSING
055743100041,ELECTRICITY,15/06/2020,167.6,KENT COUNTY COUNCIL (KCS),4900,PROPERTY & FACILITIES
055743100041,GAS,15/06/2020,74.92,KENT COUNTY COUNCIL (KCS),4900,HOUSING
055750102942,EXTERNAL PRINTING SERVICES,15/06/2020,2281.19,PermiServ Ltd,2741,WASTE & RECYLING
055791100710,AGENCY STAFF,29/06/2020,1379.38,THE OYSTER PARTNERSHIP,7361,DEVELOPMENT
055794101068,ICT CONTRACTS,15/06/2020,960,INOVEM LTD,7379,SPATIAL PLANNING
055844100941,AGENCY STAFF,29/06/2020,856.3,DRIVER HIRE GATWICK LTD,7361,WASTE & RECYLING
055851100101,RENTS,22/06/2020,2214,STONEWATER LTD,8398,HOUSING
055854103901,R/P/CP&P - SIGNAGE,22/06/2020,535.68,Serious Graphics Limited,2741,PARKING SERVICES
055861103901,REACTIVE MAINTENANCE,22/06/2020,752.04,Serious Graphics Limited,2741,ECONOMIC DEVELOPMENT
055862100472,ICT CONTRACTS,22/06/2020,10697.84,Ideagen Gael Ltd,5045,TECHNOLOGY
055874100019,PARISH COUNCILS,22/06/2020,11867.51,STEYNING PARISH COUNCIL,9405,STREET SCENE & FLEET
055927101307,MATERIALS - DIRECT PURCHASE,22/06/2020,15350.4,CRAEMER UK LIMITED,1799,WASTE & RECYLING
055939101725,AGENCY STAFF,22/06/2020,2442,SELLICK PARTNERSHIP LTD,7361,LEGAL & DEMOCRATIC
055971100424,SECURITY FEES OTHER,22/06/2020,745.2,DATA SHREDDING SERVICES LTD,7393,FINANCE
055985102974,VOLUNTARY & COMMUNITY GRANTS,22/06/2020,2500,SETAS Ltd,7361,ECONOMIC DEVELOPMENT
055990101230,AGENCY STAFF,22/06/2020,1200,M W VEHICLE ENGINEERS LTD,5013,STREET SCENE & FLEET
056012100306,CLEANING,22/06/2020,4339.53,Incor Group Management Ltd INCOR GROUP,7349,LEISURE & CULTURE
056024100317,TREE MAINTENANCE,22/06/2020,2431.8,CLASSIC SERVICES GROUP LTD,7393,LEISURE & CULTURE
056024100317,TREE MAINTENANCE,22/06/2020,93.82,CLASSIC SERVICES GROUP LTD,7393,LEISURE & CULTURE
056055103573,VOLUNTARY & COMMUNITY GRANTS,22/06/2020,800,MEL SIMMONDS,7392,ECONOMIC DEVELOPMENT
056056100094,POSTAGE PACKAGING DISTRIBUTION,29/06/2020,722.96,ROYAL MAIL,7399,LEGAL & DEMOCRATIC
056056100094,POSTAGE PACKAGING DISTRIBUTION,29/06/2020,277.04,ROYAL MAIL,7399,LEGAL & DEMOCRATIC
056058102721,REPOSSESSION & EVICTION PREVENTION EXPEN,22/06/2020,1320,Allan Snuggs,NA,HOUSING
056068100024,VOLUNTARY & COMMUNITY GRANTS,22/06/2020,40000,CHICHESTER DISTRICT COUNCIL,8651,ECONOMIC DEVELOPMENT
056071100250,VOLUNTARY & COMMUNITY GRANTS,22/06/2020,95000,ADUR DISTRICT COUNCIL,8651,ECONOMIC DEVELOPMENT
056072100306,CONTRACT CLEANING,22/06/2020,798.72,Incor Group Management Ltd INCOR GROUP,7349,LEISURE & CULTURE
056085103630,PROFESSIONAL FEES,22/06/2020,511.92,Davitt Jones Bould,8111,LEISURE & CULTURE
056086103630,PROFESSIONAL FEES,22/06/2020,9917.63,Davitt Jones Bould,8111,LEISURE & CULTURE
056104100041,GAS,22/06/2020,43.5,KENT COUNTY COUNCIL (KCS),4900,LEISURE & CULTURE
056104100041,GAS,22/06/2020,413.06,KENT COUNTY COUNCIL (KCS),4900,PROPERTY & FACILITIES
056104100041,GAS,22/06/2020,108.76,KENT COUNTY COUNCIL (KCS),4900,PROPERTY & FACILITIES
056104100041,GAS,22/06/2020,445.9,KENT COUNTY COUNCIL (KCS),4900,PROPERTY & FACILITIES
056104100041,GAS,22/06/2020,76.35,KENT COUNTY COUNCIL (KCS),4900,PROPERTY & FACILITIES
056104100041,GAS,22/06/2020,24.12,KENT COUNTY COUNCIL (KCS),4900,LEISURE & CULTURE
056104100041,GAS,22/06/2020,228.97,KENT COUNTY COUNCIL (KCS),4900,PROPERTY & FACILITIES
056104100041,GAS,22/06/2020,60.29,KENT COUNTY COUNCIL (KCS),4900,PROPERTY & FACILITIES
056104100041,GAS,22/06/2020,247.18,KENT COUNTY COUNCIL (KCS),4900,PROPERTY & FACILITIES
056104100041,GAS,22/06/2020,42.32,KENT COUNTY COUNCIL (KCS),4900,PROPERTY & FACILITIES
056104100041,GAS,22/06/2020,18.14,KENT COUNTY COUNCIL (KCS),4900,LEISURE & CULTURE
056104100041,GAS,22/06/2020,172.35,KENT COUNTY COUNCIL (KCS),4900,PROPERTY & FACILITIES
056104100041,GAS,22/06/2020,45.38,KENT COUNTY COUNCIL (KCS),4900,PROPERTY & FACILITIES
056104100041,GAS,22/06/2020,186.05,KENT COUNTY COUNCIL (KCS),4900,PROPERTY & FACILITIES
056104100041,GAS,22/06/2020,31.86,KENT COUNTY COUNCIL (KCS),4900,PROPERTY & FACILITIES
056104100041,ELECTRICITY,22/06/2020,261.9,KENT COUNTY COUNCIL (KCS),4900,LEISURE & CULTURE
056104100041,ELECTRICITY,22/06/2020,22.26,KENT COUNTY COUNCIL (KCS),4900,LEISURE & CULTURE
056104100041,ELECTRICITY,22/06/2020,111.3,KENT COUNTY COUNCIL (KCS),4900,PROPERTY & FACILITIES
056104100041,ELECTRICITY,22/06/2020,119.16,KENT COUNTY COUNCIL (KCS),4900,PROPERTY & FACILITIES
056104100041,ELECTRICITY,22/06/2020,274.98,KENT COUNTY COUNCIL (KCS),4900,PROPERTY & FACILITIES
056104100041,ELECTRICITY,22/06/2020,6.55,KENT COUNTY COUNCIL (KCS),4900,SPATIAL PLANNING
056104100041,ELECTRICITY,22/06/2020,65.47,KENT COUNTY COUNCIL (KCS),4900,LEISURE & CULTURE
056104100041,ELECTRICITY,22/06/2020,22.26,KENT COUNTY COUNCIL (KCS),4900,PROPERTY & FACILITIES
056104100041,ELECTRICITY,22/06/2020,301.17,KENT COUNTY COUNCIL (KCS),4900,PROPERTY & FACILITIES
056104100041,ELECTRICITY,22/06/2020,124.4,KENT COUNTY COUNCIL (KCS),4900,PROPERTY & FACILITIES
056104100041,ELECTRICITY,22/06/2020,164.66,KENT COUNTY COUNCIL (KCS),4900,PROPERTY & FACILITIES
056104100041,ELECTRICITY,22/06/2020,1055.01,KENT COUNTY COUNCIL (KCS),4900,PARKING SERVICES
056104100041,ELECTRICITY,22/06/2020,228.49,KENT COUNTY COUNCIL (KCS),4900,PROPERTY & FACILITIES
056104100041,ELECTRICITY,22/06/2020,1464.01,KENT COUNTY COUNCIL (KCS),4900,PARKING SERVICES
056104100041,ELECTRICITY,22/06/2020,146.13,KENT COUNTY COUNCIL (KCS),4900,PROPERTY & FACILITIES
056104100041,ELECTRICITY,22/06/2020,128.75,KENT COUNTY COUNCIL (KCS),4900,PARKING SERVICES
056104100041,ELECTRICITY,22/06/2020,1454.59,KENT COUNTY COUNCIL (KCS),4900,STREET SCENE & FLEET
056104100041,ELECTRICITY,22/06/2020,1968.18,KENT COUNTY COUNCIL (KCS),4900,STREET SCENE & FLEET
056104100041,ELECTRICITY,22/06/2020,1389.16,KENT COUNTY COUNCIL (KCS),4900,LEISURE & CULTURE
056104100041,ELECTRICITY,22/06/2020,3883,KENT COUNTY COUNCIL (KCS),4900,LEISURE & CULTURE
056104100041,ELECTRICITY,22/06/2020,10.57,KENT COUNTY COUNCIL (KCS),4900,ECONOMIC DEVELOPMENT
056104100041,ELECTRICITY,22/06/2020,264.13,KENT COUNTY COUNCIL (KCS),4900,PROPERTY & FACILITIES
056104100041,ELECTRICITY,22/06/2020,55.67,KENT COUNTY COUNCIL (KCS),4900,PROPERTY & FACILITIES
056104100041,ELECTRICITY,22/06/2020,54.66,KENT COUNTY COUNCIL (KCS),4900,PROPERTY & FACILITIES
056104100041,ELECTRICITY,22/06/2020,21.33,KENT COUNTY COUNCIL (KCS),4900,ECONOMIC DEVELOPMENT
056104100041,ELECTRICITY,22/06/2020,16.43,KENT COUNTY COUNCIL (KCS),4900,ECONOMIC DEVELOPMENT
056104100041,ELECTRICITY,22/06/2020,410.59,KENT COUNTY COUNCIL (KCS),4900,PROPERTY & FACILITIES
056104100041,ELECTRICITY,22/06/2020,86.54,KENT COUNTY COUNCIL (KCS),4900,PROPERTY & FACILITIES
056104100041,ELECTRICITY,22/06/2020,84.96,KENT COUNTY COUNCIL (KCS),4900,PROPERTY & FACILITIES
056104100041,ELECTRICITY,22/06/2020,33.16,KENT COUNTY COUNCIL (KCS),4900,ECONOMIC DEVELOPMENT
056104100041,ELECTRICITY,22/06/2020,214.64,KENT COUNTY COUNCIL (KCS),4900,LEISURE & CULTURE
056104100041,GAS,22/06/2020,83.04,KENT COUNTY COUNCIL (KCS),4900,HOUSING
056104100041,GAS,22/06/2020,40.16,KENT COUNTY COUNCIL (KCS),4900,HOUSING
056104100041,GAS,22/06/2020,12.9,KENT COUNTY COUNCIL (KCS),4900,HOUSING
056104100041,GAS,22/06/2020,59.98,KENT COUNTY COUNCIL (KCS),4900,HOUSING
056104100041,GAS,22/06/2020,21.18,KENT COUNTY COUNCIL (KCS),4900,HOUSING
056104100041,GAS,22/06/2020,28.23,KENT COUNTY COUNCIL (KCS),4900,HOUSING
056104100041,GAS,22/06/2020,49.73,KENT COUNTY COUNCIL (KCS),4900,HOUSING
056104100041,GAS,22/06/2020,30.69,KENT COUNTY COUNCIL (KCS),4900,HOUSING
056104100041,GAS,22/06/2020,14.05,KENT COUNTY COUNCIL (KCS),4900,HOUSING
056104100041,GAS,22/06/2020,32.61,KENT COUNTY COUNCIL (KCS),4900,HOUSING
056104100041,GAS,22/06/2020,39.07,KENT COUNTY COUNCIL (KCS),4900,HOUSING
056104100041,GAS,22/06/2020,15.66,KENT COUNTY COUNCIL (KCS),4900,HOUSING
056104100041,ELECTRICITY,22/06/2020,153.12,KENT COUNTY COUNCIL (KCS),4900,HOUSING
056104100041,GAS,22/06/2020,18.33,KENT COUNTY COUNCIL (KCS),4900,HOUSING
056104100041,GAS,22/06/2020,111.26,KENT COUNTY COUNCIL (KCS),4900,HOUSING
056104100041,GAS,22/06/2020,12.95,KENT COUNTY COUNCIL (KCS),4900,HOUSING
056104100041,GAS,22/06/2020,17.71,KENT COUNTY COUNCIL (KCS),4900,HOUSING
056104100041,GAS,22/06/2020,21.3,KENT COUNTY COUNCIL (KCS),4900,HOUSING
056104100041,GAS,22/06/2020,83.41,KENT COUNTY COUNCIL (KCS),4900,HOUSING
056104100041,GAS,22/06/2020,11.91,KENT COUNTY COUNCIL (KCS),4900,HOUSING
056104100041,GAS,22/06/2020,21.17,KENT COUNTY COUNCIL (KCS),4900,HOUSING
056104100041,GAS,22/06/2020,27.35,KENT COUNTY COUNCIL (KCS),4900,HOUSING
056104100041,GAS,22/06/2020,19.8,KENT COUNTY COUNCIL (KCS),4900,HOUSING
056104100041,GAS,22/06/2020,32.69,KENT COUNTY COUNCIL (KCS),4900,HOUSING
056104100041,GAS,22/06/2020,19.23,KENT COUNTY COUNCIL (KCS),4900,HOUSING
056104100041,GAS,22/06/2020,27.23,KENT COUNTY COUNCIL (KCS),4900,HOUSING
056104100041,GAS,22/06/2020,11.13,KENT COUNTY COUNCIL (KCS),4900,HOUSING
056104100041,GAS,22/06/2020,24.47,KENT COUNTY COUNCIL (KCS),4900,HOUSING
056104100041,GAS,22/06/2020,21.22,KENT COUNTY COUNCIL (KCS),4900,HOUSING
056104100041,GAS,22/06/2020,29.51,KENT COUNTY COUNCIL (KCS),4900,HOUSING
056104100041,GAS,22/06/2020,118.09,KENT COUNTY COUNCIL (KCS),4900,HOUSING
056104100041,GAS,22/06/2020,325.04,KENT COUNTY COUNCIL (KCS),4900,HOUSING
056104100041,GAS,22/06/2020,148.74,KENT COUNTY COUNCIL (KCS),4900,HOUSING
056104100041,GAS,22/06/2020,239.51,KENT COUNTY COUNCIL (KCS),4900,HOUSING
056104100041,GAS,22/06/2020,109.43,KENT COUNTY COUNCIL (KCS),4900,HOUSING
056104100041,GAS,22/06/2020,140.44,KENT COUNTY COUNCIL (KCS),4900,HOUSING
056104100041,ELECTRICITY,22/06/2020,490.84,KENT COUNTY COUNCIL (KCS),4900,HOUSING
056104100041,ELECTRICITY,22/06/2020,113.22,KENT COUNTY COUNCIL (KCS),4900,PARKING SERVICES
056104100041,ELECTRICITY,22/06/2020,184.76,KENT COUNTY COUNCIL (KCS),4900,PARKING SERVICES
056104100041,ELECTRICITY,22/06/2020,178.03,KENT COUNTY COUNCIL (KCS),4900,PROPERTY & FACILITIES
056104100041,ELECTRICITY,22/06/2020,1371.68,KENT COUNTY COUNCIL (KCS),4900,LEISURE & CULTURE
056104100041,GAS,22/06/2020,106.06,KENT COUNTY COUNCIL (KCS),4900,HOUSING
056104100041,GAS,22/06/2020,67.26,KENT COUNTY COUNCIL (KCS),4900,HOUSING
056104100041,GAS,22/06/2020,74.92,KENT COUNTY COUNCIL (KCS),4900,HOUSING
056104100041,GAS,22/06/2020,106.06,KENT COUNTY COUNCIL (KCS),4900,HOUSING
056104100041,GAS,22/06/2020,74.92,KENT COUNTY COUNCIL (KCS),4900,HOUSING
056104100041,GAS,22/06/2020,67.26,KENT COUNTY COUNCIL (KCS),4900,HOUSING
056104100041,GAS,22/06/2020,16.43,KENT COUNTY COUNCIL (KCS),4900,HOUSING
056104100041,GAS,22/06/2020,20.91,KENT COUNTY COUNCIL (KCS),4900,HOUSING
056104100041,GAS,22/06/2020,16.66,KENT COUNTY COUNCIL (KCS),4900,HOUSING
056104100041,GAS,22/06/2020,17.78,KENT COUNTY COUNCIL (KCS),4900,HOUSING
056104100041,GAS,22/06/2020,25.77,KENT COUNTY COUNCIL (KCS),4900,HOUSING
056104100041,GAS,22/06/2020,18.32,KENT COUNTY COUNCIL (KCS),4900,HOUSING
056104100041,GAS,22/06/2020,18.76,KENT COUNTY COUNCIL (KCS),4900,HOUSING
056104100041,GAS,22/06/2020,25.24,KENT COUNTY COUNCIL (KCS),4900,HOUSING
056104100041,GAS,22/06/2020,18.25,KENT COUNTY COUNCIL (KCS),4900,HOUSING
056104100041,GAS,22/06/2020,23.89,KENT COUNTY COUNCIL (KCS),4900,HOUSING
056104100041,GAS,22/06/2020,18.39,KENT COUNTY COUNCIL (KCS),4900,HOUSING
056104100041,GAS,22/06/2020,18.14,KENT COUNTY COUNCIL (KCS),4900,HOUSING
056104100041,GAS,22/06/2020,17,KENT COUNTY COUNCIL (KCS),4900,HOUSING
056104100041,GAS,22/06/2020,22.94,KENT COUNTY COUNCIL (KCS),4900,HOUSING
056104100041,GAS,22/06/2020,16.44,KENT COUNTY COUNCIL (KCS),4900,HOUSING
056104100041,GAS,22/06/2020,23.05,KENT COUNTY COUNCIL (KCS),4900,HOUSING
056104100041,GAS,22/06/2020,28.26,KENT COUNTY COUNCIL (KCS),4900,HOUSING
056104100041,GAS,22/06/2020,45.8,KENT COUNTY COUNCIL (KCS),4900,HOUSING
056104100041,GAS,22/06/2020,37.32,KENT COUNTY COUNCIL (KCS),4900,HOUSING
056104100041,GAS,22/06/2020,24.3,KENT COUNTY COUNCIL (KCS),4900,HOUSING
056104100041,GAS,22/06/2020,20.31,KENT COUNTY COUNCIL (KCS),4900,HOUSING
056104100041,GAS,22/06/2020,35.58,KENT COUNTY COUNCIL (KCS),4900,HOUSING
056104100041,GAS,22/06/2020,21.09,KENT COUNTY COUNCIL (KCS),4900,HOUSING
056104100041,GAS,22/06/2020,24.1,KENT COUNTY COUNCIL (KCS),4900,HOUSING
056104102565,WATER,29/06/2020,634.52,SCOTTISH WATER BUSINESS STREAM LTD,4900,LEISURE & CULTURE
056109101107,*** Unknown ***,22/06/2020,13226.62,TMS Electrical Contractors Limited,1731,LEISURE & CULTURE
056114103288,USE OF CONSULTANTS,29/06/2020,795.6,Essex County Council,9405,DEVELOPMENT
056126100120,EXTERNAL PRINTING SERVICES,22/06/2020,511.2,FOREST LITHO  LTD,2741,STREET SCENE & FLEET
056131103917,BULKY BAGS,22/06/2020,1056,NNZ Ltd,5039,WASTE & RECYLING
056147100122,BURIAL EXPENSES,29/06/2020,1959,FREEMAN BROTHERS,7261,ENVIRONMENTAL SERVICES/LICENSING
056149100122,BURIAL EXPENSES,29/06/2020,1523,FREEMAN BROTHERS,7261,ENVIRONMENTAL SERVICES/LICENSING
056186102769,EQUIPMENT & TOOLS-REPAIR & MNT,29/06/2020,1000,Derek Collis t/a DelWood,780,LEISURE & CULTURE
056187103948,VOLUNTARY & COMMUNITY GRANTS,29/06/2020,2000,Nicole Jobanputra t/a Construction Coders,NA,ECONOMIC DEVELOPMENT
056189103943,VOLUNTARY & COMMUNITY GRANTS,29/06/2020,1856,Cabin Pressure Spirits Ltd,5813,ECONOMIC DEVELOPMENT
056194102106,PROFESSIONAL FEES,29/06/2020,2220,SILVERTIP FILMS,7333,ECONOMIC DEVELOPMENT
056225100317,TREE MAINTENANCE,29/06/2020,3731.33,CLASSIC SERVICES GROUP LTD,7393,LEISURE & CULTURE
056226102862,CYCLIC MAINTENANCE,29/06/2020,85580.93,Kier Construction Southern Ltd,NA,PARKING SERVICES
056228102862,PREMISES GENERAL REPAIRS,29/06/2020,214059.07,Kier Construction Southern Ltd,NA,PROPERTY & FACILITIES
056234101519,COUNSEL FEES,29/06/2020,4800,CHRISTOPHER KATKOWSKI QC,8111,LEGAL & DEMOCRATIC
056235102526,USE OF CONSULTANTS,29/06/2020,4237.92,JOHN SLATER PLANNING LTD,7392,SPATIAL PLANNING
056242100151,EQUIPMENT & TOOLS-PURCHASE,29/06/2020,874.8,TRAFALGAR CLEANING EQUIPMENT,7349,STREET SCENE & FLEET
056247103901,PURCHASE SIGNAGE,29/06/2020,539.28,Serious Graphics Limited,2741,HOUSING
056256101003,USE OF CONSULTANTS,29/06/2020,504,READING AGRICULTURAL CONSULTANTS LTD,7399,DEVELOPMENT
056273101725,AGENCY STAFF,29/06/2020,2442,SELLICK PARTNERSHIP LTD,7361,LEGAL & DEMOCRATIC
056297100917,BOARD & LODGING CHARGES,29/06/2020,1604.19,WIMBLEHURST HOTEL,7011,HOUSING
056298100917,BOARD & LODGING CHARGES,29/06/2020,1604.19,WIMBLEHURST HOTEL,7011,HOUSING
056304100577,EQUIPMENT & TOOLS-PURCHASE,29/06/2020,634.08,GRAFFITI REMOVAL LTD,1799,STREET SCENE & FLEET
056322100917,BOARD & LODGING CHARGES,29/06/2020,595,WIMBLEHURST HOTEL,7011,HOUSING
056324103967,ICT CONTRACTS,29/06/2020,9600,Ascendant Solutions Ltd,7392,DIR RESOURCES
056326103965,VOLUNTARY & COMMUNITY GRANTS,29/06/2020,851,Beobia Ltd,7999,ECONOMIC DEVELOPMENT
056381103771,REACTIVE MAINTENANCE,29/06/2020,1039.5,Scotscape Smartscape Limited,780,PARKING SERVICES
